Cogmind - Beta 12 @@@ ROGUE MODE // 2023.04.06 @ 20:27:09 Player: steven Result: Destroyed by G-47 Trooper with Particle Gun Performance ------------- Evolutions (3) 1500 Regions Visited (6) 1200 Robots Destroyed (24) 120 Value Destroyed (578) 578 Prototype IDs (5) 100 Alien Tech Used (0) 0 Bonus (200) 200 TOTAL SCORE: 3698 Bonus ------- Entered Garrisons 200 Cogmind --------- Core Integrity 0/700 Matter 300/300 Energy 100/100 System Corruption 0% Temperature Cool (9) Movement Core (50) Location -7/Garrison Parts ------- > --- POWER (1) -------- (None) > --- PROPULSION (4) --- (None) > --- UTILITY (4) ------ (None) > --- WEAPON (4) ------- (None) > --- INVENTORY (5) ---- VTOL Module VTOL Module Light Armor Plating System Shield Peak State ------------ > --- POWER ------------ Light Nuclear Core > --- PROPULSION ------- Armored Huge Wheel Armored Huge Wheel > --- UTILITY ---------- Melee Analysis Suite Medium Armor Plating Hacking Suite System Shield > --- WEAPON ----------- Greatsword Greatsword > --- INVENTORY -------- Airjet Light Armor Plating System Shield [Rating: 46] Favorites ----------- Power Light Ion Engine Engine Light Ion Engine Power Core Light Nuclear Core Propulsion Flight Unit Treads Light Treads Wheel Armored Huge Wheel Flight Unit Flight Unit Utility Melee Analysis Suite Device ECM Suite Storage Small Storage Unit Processor Melee Analysis Suite Hackware System Shield Protection Light Armor Plating Weapon Heavy Hammer Energy Gun Spread Laser Energy Cannon Heavy Particle Cannon Ballistic Gun Light Assault Rifle Impact Weapon Heavy Hammer Slashing Weapon Greatsword Build | -11 -10 -9 -9 -8 -7 -7 ------- Run | Jun Mat Mat Min Mat Fac Gar Slots Evolved 6 | . . 2 . 2 2 . Power . | . . . . . . . Propulsion 2 | . . 2 . . . . Utility 2 | . . . . 2 . . Weapon 2 | . . . . . 2 . Parts Attached 42 | 6 9 5 4 16 1 1 Power 3 | 1 1 . . . . 1 Engine 2 | 1 1 . . . . . Core 1 | . . . . . . 1 Reactor . | . . . . . . . Propulsion 16 | 2 3 2 2 7 . . Treads 2 | 2 . . . . . . Leg . | . . . . . . . Wheel 2 | . . . . 2 . . Hover . | . . . . . . . Flight 12 | . 3 2 2 5 . . Utility 9 | 1 . 2 . 6 . . Device 1 | . . . . 1 . . Storage 1 | 1 . . . . . . Processor 2 | . . 2 . . . . Hackware 2 | . . . . 2 . . Protection 3 | . . . . 3 . . Artifact . | . . . . . . . Weapon 14 | 2 5 1 2 3 1 . Energy Gun 5 | 1 3 . . 1 . . Energy Cannon 1 | . . 1 . . . . Ballistic Gun 1 | 1 . . . . . . Ballistic Cannon . | . . . . . . . Launcher . | . . . . . . . Special Weapon . | . . . . . . . Impact Weapon 3 | . 2 . 1 . . . Slashing Weapon 4 | . . . 1 2 1 . Piercing Weapon . | . . . . . . . Special Melee Weapon . | . . . . . . . Unidentified Prototypes . | . . . . . . . Parts Lost 15 | . . 1 1 4 . 9 Power 1 | . . . . . . 1 Propulsion 5 | . . 1 1 1 . 2 Utility 6 | . . . . 2 . 4 Weapon 3 | . . . . 1 . 2 Highest Loss Streak 8 | . . 1 1 2 . 8 To Critical Strikes . | . . . . . . . Average Slot Usage (%) 79 | . 77 89 90 95 69 47 Engine 8 | . 14 11 11 9 7 1 Treads 3 | . 17 . . . . . Wheel 2 | . . . . 1 15 9 Flight 21 | . 10 33 34 33 . . Storage 1 | . 8 . . . . . Processor 12 | . . 22 22 16 7 4 Hackware 4 | . . . . 6 15 12 Protection 4 | . . . . 9 7 4 Energy Gun 3 | . 16 3 . 1 . . Energy Cannon 1 | . . 7 4 . . . Impact Weapon 6 | . 8 11 7 8 . . Slashing Weapon 6 | . . . 9 6 15 10 Naked Turns 8 | . . . . . . 8 Heaviest Build 22 | 12 16 11 11 15 20 22 Greatest Support 56 | 40 40 16 16 56 56 56 Greatest Overweight (x) . | . . . . . . . Average Overweight (x) . | . . . . . . . Largest Inventory Capacity 8 | 8 8 5 5 5 5 5 Average Capacity 5 | 7 6 5 5 5 5 5 Most Carried 5 | 1 5 5 5 5 3 4 Average Carried 4 | . 3 4 4 4 3 3 Final Capacity 8 | 8 5 5 5 5 5 5 Final Carried 5 | 1 5 5 5 5 3 4 Class Distribution -------------------- 40% | Mutant 21% | Scavenger-Sprinter 19% | Hacker-Gladiator 11% | Scavenger-Mutant 4% | Hacker-Mutant 3% | Hacker-Sprinter Dominant Class ---------------- Mutant | -10/Materials Scavenger-Mutant | -9/Materials Mutant | -9/Mines Scavenger-Sprinter | -8/Materials Hacker-Gladiator | -7/Factory Hacker-Gladiator | -7/Garrison Resources | -11 -10 -9 -9 -8 -7 -7 ----------- Run | Jun Mat Mat Min Mat Fac Gar Matter Collected 629 | 242 137 39 51 100 . 60 Remotely . | . . . . . . . Salvage Created 654 | . 147 39 11 260 . 197 Parts 34 | . 13 . . 9 . 12 Haulers Intercepted . | . . . . . . . Recyclers Shooed 1 | . 1 . . . . . Parts Field Recycled . | . . . . . . . Retrieved Matter . | . . . . . . . Parts Self-Destructed . | . . . . . . . Prevented . | . . . . . . . Kills | -11 -10 -9 -9 -8 -7 -7 ------- Run | Jun Mat Mat Min Mat Fac Gar Combat Hostiles Destroyed 17 | . 4 . 1 7 . 5 Melee 11 | . . . 1 5 . 5 Guns 4 | . 4 . . . . . Classes Destroyed 7 | . 4 2 . 1 . . Builder 1 | . 1 . . . . . Recycler 1 | . 1 . . . . . Operator 2 | . . 1 . 1 . . Watcher 3 | . . 1 . 2 . . Swarmer 10 | . 2 . 1 4 . 3 Grunt 4 | . 2 . . . . 2 Sentry 3 | . . . . 3 . . Best Kill Streak 6 | . 6 1 1 5 . 2 Combat Bots Only 4 | . 4 . 1 4 . 2 Max Kills in Single Turn 2 | . 2 1 1 1 . 1 Gunslinging 1 | . 1 . . . . . Exploded . | . . . . . . . Melee 1 | . . . 1 1 . 1 Uniques/NPCs Destroyed . | . . . . . . . Combat | -11 -10 -9 -9 -8 -7 -7 -------- Run | Jun Mat Mat Min Mat Fac Gar Damage Taken 2504 | . 260 57 22 413 . 1752 Core 908 | . 78 35 . 83 . 712 Absorbed by Shields 8 | . . . . . . 8 Core Remaining (%) 85 | 100 68 . 91 84 . . Volleys Fired 12 | . 12 . . . . . Largest 2 | . 2 . . . . . Hottest 130 | . 130 . . . . . Shots Fired 24 | . 24 . . . . . Gun 24 | . 24 . . . . . Cannon . | . . . . . . . Launcher . | . . . . . . . Special . | . . . . . . . Kinetic . | . . . . . . . Thermal 24 | . 24 . . . . . Explosive . | . . . . . . . Electromagnetic . | . . . . . . . Robot Hit Streak 13 | . 13 . . . . . Robot Miss Streak 6 | . 6 . . . . . Penetration Max . | . . . . . . . Secondary Targets 1 | . 1 . . . . . Max Gunslinging Chain 1 | . 1 . . . . . Shots Hit Robots 60 | . 21 2 1 27 . 9 Core Hits 36 | . 26 . . 5 . 5 Critical Kills 1 | . . . . 1 . . Critical Parts Destroyed 3 | . . . . 3 . . Critical Strikes 7 | . . . . 4 . 3 Smash 4 | . . . . 4 . . Sever 3 | . . . . . . 3 Melee Attacks 51 | . . 2 1 32 . 16 Impact 30 | . . 2 1 27 . . Slashing 21 | . . . . 5 . 16 Piercing . | . . . . . . . Sneak Attacks 2 | . . . . 2 . . Combat Hostiles 1 | . . . . 1 . . Follow-up Attacks 5 | . . . . 3 . 2 Damage Inflicted 1960 | . 311 114 34 1041 . 460 Guns 311 | . 311 . . . . . Cannons . | . . . . . . . Explosions . | . . . . . . . Melee 1649 | . . 114 34 1041 . 460 Ramming . | . . . . . . . Kinetic . | . . . . . . . Thermal 311 | . 311 . . . . . Explosive . | . . . . . . . Electromagnetic . | . . . . . . . Impact 1066 | . . 114 34 918 . . Slashing 583 | . . . . 123 . 460 Piercing . | . . . . . . . Highest Corruption . | . . . . . . . Average Corruption . | . . . . . . . Corruption Purged . | . . . . . . . Corruption Blocked . | . . . . . . . Overload Shots . | . . . . . . . Overflow Damage 345 | . . 64 14 267 . . Projectiles . | . . . . . . . Explosions . | . . . . . . . Melee 345 | . . 64 14 267 . . Knockbacks 2 | . . 1 . 1 . . Impact 2 | . . 1 . 1 . . Kinetic . | . . . . . . . Secondary . | . . . . . . . Self-Inflicted Damage . | . . . . . . . Shots . | . . . . . . . Rammed . | . . . . . . . Targets Rammed . | . . . . . . . Kicked . | . . . . . . . Crushed . | . . . . . . . Highest Temperature 619 | . 619 . . . . 10 Average Temperature 308 | . 323 . . . . 4 Received Heat Transfer 663 | . 96 18 9 72 . 468 Effects 15 | . 15 . . . . . Shutdowns 3 | . 3 . . . . . Energy Bleed 1 | . 1 . . . . . Matter Decay 1 | . 1 . . . . . Damage (minor) 6 | . 6 . . . . . Damage (major) 3 | . 3 . . . . . Damage (core) 1 | . 1 . . . . . Siege Activations . | . . . . . . . Robots Corrupted . | . . . . . . . Combat Hostiles . | . . . . . . . Parts Fried 12 | . . 5 1 6 . . Impact Corruptions 15 | . . 3 1 11 . . Robots Melted . | . . . . . . . Combat Hostiles . | . . . . . . . Parts Melted . | . . . . . . . Heat Transferred 395 | . 395 . . . . . Parts Sabotaged . | . . . . . . . Parts Stolen . | . . . . . . . Parts Stripped . | . . . . . . . Power Chain Reactions . | . . . . . . . Missiles Intercepted . | . . . . . . . Alert | -11 -10 -9 -9 -8 -7 -7 ------- Run | Jun Mat Mat Min Mat Fac Gar Peak Influence 390 | . 165 163 84 390 177 323 Initial 177 | . . 69 59 32 177 123 Average 148 | . 84 109 72 235 177 194 Maximum Alert Level 1 | . . . . 1 . 1 Low Security (%) 72 | 100 100 100 100 40 100 47 Level 1 27 | . . . . 59 . 52 Level 2 . | . . . . . . . Level 3 . | . . . . . . . Level 4 . | . . . . . . . Level 5 . | . . . . . . . High Security . | . . . . . . . Max Security . | . . . . . . . Squads Dispatched 5 | . 1 2 . 2 . . Investigation . | . . . . . . . Extermination . | . . . . . . . Reinforcement 5 | . 1 2 . 2 . . Assault . | . . . . . . . Garrison . | . . . . . . . Intercept . | . . . . . . . Searches Triggered . | . . . . . . . Construction Impeded . | . . . . . . . Haulers Reinforced . | . . . . . . . Active Scanning Responses . | . . . . . . . Cargo Convoy Interrupts . | . . . . . . . Stealth | -11 -10 -9 -9 -8 -7 -7 --------- Run | Jun Mat Mat Min Mat Fac Gar Distress Signals 4 | . 1 1 . 2 . . Communications Jammed . | . . . . . . . Distress Signals . | . . . . . . . Times Spotted 63 | . 7 11 2 15 . 28 Peak Tracking Total 18 | . 6 5 1 6 . 18 Tactical Retreats 10 | . 1 1 . 3 . 5 Traps | -11 -10 -9 -9 -8 -7 -7 ------- Run | Jun Mat Mat Min Mat Fac Gar Traps Triggered 3 | . . . . . . 3 Indirectly . | . . . . . . . Trap Hack Attempts . | . . . . . . . Triggered . | . . . . . . . Disarmed . | . . . . . . . Reprogrammed . | . . . . . . . Reused . | . . . . . . . Traps Extracted . | . . . . . . . Installed . | . . . . . . . Triggered . | . . . . . . . Machines | -11 -10 -9 -9 -8 -7 -7 ---------- Run | Jun Mat Mat Min Mat Fac Gar Machines Disabled . | . . . . . . . Max in Single Turn . | . . . . . . . Garrison Relay 1 | . . . . . . 1 Machines Repaired . | . . . . . . . Machines Sabotaged . | . . . . . . . Overloaded Fab Kills . | . . . . . . . Hacking | -11 -10 -9 -9 -8 -7 -7 --------- Run | Jun Mat Mat Min Mat Fac Gar Machines Accessed 8 | . 2 1 . 3 1 1 Terminals 7 | . 2 1 . 3 . 1 Fabricators . | . . . . . . . Repair Stations . | . . . . . . . Recycling Units . | . . . . . . . Scanalyzers . | . . . . . . . Garrison Access 1 | . . . . . 1 . Total Hacks 17 | . 5 1 . 8 1 2 Successful 10 | . 2 1 . 5 1 1 Failed 7 | . 3 . . 3 . 1 Catastrophic 2 | . . . . 1 . 1 Database Lockouts . | . . . . . . . Manual . | . . . . . . . Terminals 16 | . 5 1 . 8 . 2 Fabricators . | . . . . . . . Repair Stations . | . . . . . . . Recycling Units . | . . . . . . . Scanalyzers . | . . . . . . . Garrison Access 1 | . . . . . 1 . Terminal Hacks 9 | . 2 1 . 5 . 1 Record 1 | . 1 . . . . . Prototype ID Bank 3 | . 1 . . 2 . . Emergency Access Points 1 | . . . . . . 1 Surveillance Status 1 | . . . . 1 . . Registered Components 1 | . . 1 . . . . Zone Layout 2 | . . . . 2 . . Fabricator Hacks . | . . . . . . . Repair Station Hacks . | . . . . . . . Recycling Unit Hacks . | . . . . . . . Scanalyzer . | . . . . . . . Garrison Access Hacks 1 | . . . . . 1 . Unlock Access 1 | . . . . . 1 . Unauthorized Hacks . | . . . . . . . Terminals . | . . . . . . . Fabricators . | . . . . . . . Repair Stations . | . . . . . . . Recycling Units . | . . . . . . . Scanalyzers . | . . . . . . . Garrison Access . | . . . . . . . Data Cores Recovered 2 | . . 1 . 1 . . Used . | . . . . . . . Hacking Detections 5 | . 1 . . 2 1 1 Full Trace Events . | . . . . . . . Feedback Events . | . . . . . . . Feedback Blocked . | . . . . . . . Robot Schematics Acquired . | . . . . . . . Robots Built . | . . . . . . . Authchips . | . . . . . . . Time . | . . . . . . . Total Robot Build Rating . | . . . . . . . Part Schematics Acquired . | . . . . . . . Parts Built . | . . . . . . . Authchips . | . . . . . . . Time . | . . . . . . . Total Part Build Rating . | . . . . . . . Parts Repaired . | . . . . . . . Time . | . . . . . . . Parts Recycled . | . . . . . . . Recycled Matter . | . . . . . . . Retrieved Matter . | . . . . . . . Retrieved Components . | . . . . . . . Parts Scanalyzed . | . . . . . . . Part Schematics Acquired . | . . . . . . . Parts Damaged . | . . . . . . . Bothacking | -11 -10 -9 -9 -8 -7 -7 ------------ Run | Jun Mat Mat Min Mat Fac Gar Used RIF Installer . | . . . . . . . Robots Hacked . | . . . . . . . Non-combat . | . . . . . . . Combat . | . . . . . . . Robot Hacks Applied . | . . . . . . . Relay Couplers Released 4 | . . . . . . 4 Machine Destruction 4 | . . . . . . 4 Fabnet Peak Effective % . | . . . . . . . Robots Rewired . | . . . . . . . Allies Hacked . | . . . . . . . Hacks Repelled . | . . . . . . . Allies | -11 -10 -9 -9 -8 -7 -7 -------- Run | Jun Mat Mat Min Mat Fac Gar Total Allies . | . . . . . . . Largest Group . | . . . . . . . Highest-Rated Group . | . . . . . . . Highest-Rated Ally . | . . . . . . . Total Orders . | . . . . . . . Ally Attacks . | . . . . . . . Total Damage . | . . . . . . . Kills . | . . . . . . . Allies Corrupted . | . . . . . . . Allies Melted . | . . . . . . . Intel | -11 -10 -9 -9 -8 -7 -7 ------- Run | Jun Mat Mat Min Mat Fac Gar Robot Analysis Total . | . . . . . . . Derelict Logs Recovered 1 | . . . 1 . . . Drone Launches . | . . . . . . . Drone Recoveries . | . . . . . . . Exploration | -11 -10 -9 -9 -8 -7 -7 ------------- Run | Jun Mat Mat Min Mat Fac Gar Turns Passed 1121 | 59 192 121 180 324 28 217 Spaces Moved 1478 | 32 150 293 313 464 26 200 Core 101 | 1 . . . . . 100 Treads 76 | 31 45 . . . . . Legs . | . . . . . . . Wheels 148 | . . . . 22 26 100 Hover . | . . . . . . . Flight 1153 | . 105 293 313 442 . . Fastest Speed 29 | 50 37 31 31 29 100 50 Average Speed 46 | 156 73 33 33 33 100 75 Slowest Speed 160 | 160 160 34 37 100 100 100 Overloaded Moves . | . . . . . . . Propulsion Burnouts . | . . . . . . . Robots Hopped . | . . . . . . . Cave-ins Triggered . | . . . . . . . Exploration Rate (%) 26 | 4 24 20 54 42 1 37 Regions Visited 6 Branch Regions 1 Pre-discovered Areas . | . . . . . . . Known Exits Taken 1 | . . . . . 1 . Unknown Exits Taken 5 | 1 1 1 1 1 . . Scrap Searched 1 | . . . 1 . . . Spaces Dug . | . . . . . . . Terrain Destroyed . | . . . . . . . Melee . | . . . . . . . Projectile . | . . . . . . . AOE . | . . . . . . . Terrain Rammed . | . . . . . . . Walls Destroyed . | . . . . . . . Machines Disabled . | . . . . . . . Actions | -11 -10 -9 -9 -8 -7 -7 --------- Run | Jun Mat Mat Min Mat Fac Gar Total 1797 | 38 207 311 388 588 27 238 Wait 155 | . 20 4 62 53 . 16 Move 1473 | 31 149 292 312 463 26 200 Hop . | . . . . . . . Pick Up 27 | 1 6 4 4 10 . 2 Fast Attach 30 | 6 7 4 3 9 . 1 Attach 8 | . 1 1 1 4 1 . Detach 1 | . . . . 1 . . Swap 4 | . 1 . . 3 . . Drop 39 | . 11 4 5 17 . 2 Fire 12 | . 12 . . . . . Melee 45 | . . 2 1 28 . 14 Ram . | . . . . . . . Kick . | . . . . . . . Crush . | . . . . . . . Escape Stasis 3 | . . . . . . 3 Rewire . | . . . . . . . Trap . | . . . . . . . Miscellaneous . | . . . . . . . Route ------- -11/Junkyard -10/Materials -9/Materials -9/Mines -8/Materials (discovered 2 exits: *Fac / Sto) -7/Factory -7/Garrison History --------- Turn | Location | Event 31 | -11/Junkyard | Discovered new exit (range 14) 60 | -11/Junkyard | Entered Materials 241 | -10/Materials | Discovered new exit (range 16) 252 | -10/Materials | Entered another Materials area 252 | -9/Materials | Evolved 2 slots: Propulsion x2 366 | -9/Materials | Discovered new exit (range 16) 373 | -9/Materials | Entered Mines 385 | -9/Mines | Assembled infested the area 391 | -9/Mines | A weapon hastily lodged in a ceiling crevice suddenly fell to the ground 406 | -9/Mines | Discovered new exit (range 9) 425 | -9/Mines | Joined a pair of Derelicts in attacking an 0b10 outpost 530 | -9/Mines | Received a Rocket Launcher from a helpful Derelict 553 | -9/Mines | Entered Materials 553 | -8/Materials | Evolved 2 slots: Utility x2 554 | -8/Materials | Identified exit to Storage 862 | -8/Materials | Discovered new exit (range 8) 877 | -8/Materials | Entered Factory 877 | -7/Factory | Evolved 2 slots: Weapon x2 905 | -7/Factory | Identified exit to Garrison 905 | -7/Factory | Entered Garrison 932 | -7/Garrison | Heavy support dispatched to Factory 942 | -7/Garrison | Triggered checkpoint 1063 | -7/Garrison | Core integrity fell below 50% 1080 | -7/Garrison | Triggered checkpoint 1082 | -7/Garrison | Garrison Relay disabled 1088 | -7/Garrison | Lost 8 parts (1p2n3u2w) 1091 | -7/Garrison | Core integrity fell below 20% 1122 | -7/Garrison | Destroyed by G-47 Trooper with Particle Gun Last Messages --------------- 01052_ Greatsword destroyed. 01052_ Lgt. Nuclear Core destroyed. 01053_ Hacking Suite destroyed. 01054_ S-27 Virus destroyed. 01056_ Critical hit (Burn: +37). Garrison Door activated. 01057_ Arm. Huge Wheel destroyed. 01061_ Slug penetrates S-27 Virus. 01061_ S-27 Virus knocked back. 01076_ Connecting with Garrison Terminal... >>Access(Emergency) Found 49 emergency access points. Map updated. 01080_ Beams of light sweep through the air. An alarm sounds. 01082_ Garrison Relay disabled. 01082_ Relay Coupler [Grunt] tumbles out of relay unit. 01082_ Relay Coupler [Duelist] tumbles out of relay unit. 01082_ Relay Coupler [NC] tumbles out of relay unit. 01082_ Relay Coupler [Specialist] tumbles out of relay unit. 01114_ System Shield destroyed. Map ----- +----------------------------------------------------+ | | | | | | | ??????????????????????????????????????? | | ??????????????????????????????????????? | | ??????????????????????????????????????? | | ??????????????????????????????????????? | | ??????????????????????????????????????? | | ??????????????????????????????????????? | | ??????????????????????????????????????? | | ??????????????????????????????????????? | | ??####????????????????????????????????? | | ??# ????????????????????????????????? | | ??# ????????????????????????????????? | | ??# ????????????????????????????????? | | ??# ????????????????????????????????? | | ??# #???????????????????????????????? | | ??# #???????????????????????????????? | | ??# #???????????????????????????????? | | ??# #???????????????#######?????????? | | ??# #???????????????#"""""#?????????? | | ??# #???????????????" ##?????????? | | ??# ############""""" o""#?????????? | | ??# g l gs """#?????????? | | ??# ########### g """#?????????? | | ??# ####??????# g @""#?????????? | | ??# ##T####???# """#?????????? | | ??# #???# """#?????????? | | ??+ #???##""""" ""#?????????? | | ??# #### #?????????" ##?????????? | | ??# #??# ###???????#"""""#?????????? | | ??# #??# #???????#######?????????? | | ??# #??# #???????????????????????? | | ??# #??# #???????????????????????? | | ??# #??# ###???????????????????????? | | ??# #??# #?????????????????????????? | | ??# #??# #?????????????????????????? | | ??# #??# ###???????????????????????? | | ??# #??# #"#???????????????????????? | | ??# #??# "#???????????????????????? | | ??# #### !!"#???????????????????????? | | ??# + / !!#???????????????????????? | | + + / #"#???????????????????????? | | ### #########???????????????????????? | | ??# #???????????????????????????????? | | ### #???????????????????????????????? | | #???????????????????????????????? | | #???????????????????????????????? | | #???????????????????????????????? | | #######???????????????????????????????? | +----------------------------------------------------+ Best States ------------- Heat Dissipation 34 Energy Generation 14 Energy Capacity 250 Matter Stores 300 Matter Capacity 300 Sight Range 16 Terrain Scan Density 10 ECM Strength 1 Armor Coverage 300 Evasion (%) 64 Melee Accuracy 10 Recoil Reduction 2 Offensive Hacking 10 Defensive Hacking 10 Item Schematics ----------------- None Robot Schematics ------------------ None Fabricated ------------ Nothing Alien Tech Used ----------------- None Achievements -------------- None Challenges ------------ None Game ------ Seed LongswordCoordinationCharger Manual? 0 Play Time 00:30:43 Cumulative 20.8 hours Start 2023.04.06 @ 19:56:21 End 2023.04.06 @ 20:27:09 Sessions 1 Manual Loads 0 Difficulty Rogue Special Mode None Game No. 35 Rogue 26 Adventurer 9 Explorer 0 Win Type - Total 0 Types 0/0/0/0/0/0/0/0/0 Lore% 13 Gallery% 21 Achievement% 17 Wizard Run 0 Options --------- ASCII 0 Keyboard 0 Movement Mouse Keybinds 0 Fullscreen 1 Font 18/X11Bold Map View 76x50 Tactical HUD 1 Map Filters NONE Filters NONE Steam 1 RUN: a1bfd902-caaf-43f2-beb4-6264a3c0ffec